Workbook

Sheet 2024학년도
A1: 2024학년도 학비 내역
A2: 구분 | B2: 분기 | C2: 교통비 | D2: 급식비 | E2: 수업료 | F2: 급식비 | G2: 교통비(무석) | H2: 교통비(소주) | I2: 소계(무석) | J2: 소계(소주)
A3: 예비반(일반) | B3: 1분기 | C3: 59 | D3: 59 | E3: 7,000.00 | F3: =D3*26 -> 1,534.00 | G3: =C3*40 -> 2,360.00 | I3: =E3+F3+G3 -> 10,894.00
A4: 예비반(일반) | B4: 2분기 | C4: 29 | D4: 29 | E4: 7,000.00 | F4: =D4*26 -> 754.00 | G4: =C4*40 -> 1,160.00 | I4: =E4+F4+G4 -> 8,914.00
A5: 예비반(일반) | B5: 3분기 | C5: 65 | D5: 65 | E5: 7,000.00 | F5: =D5*26 -> 1,690.00 | G5: =C5*40 -> 2,600.00 | I5: =E5+F5+G5 -> 11,290.00
A6: 예비반(일반) | B6: 4분기 | C6: 28 | D6: 28 | E6: 7,000.00 | F6: =D6*26 -> 728.00 | G6: =C6*40 -> 1,120.00 | I6: =E6+F6+G6 -> 8,848.00
A7: 합계 | C7: =SUM(C3:C6) -> 181 | D7: 181 | E7: 28,000.00 | F7: 4,706.00 | G7: 7,240.00 | H7: 0 | I7: 39,946.00 | J7: 0
A8: 예비반(2형제) | B8: 1분기 | C8: 59 | D8: 59 | E8: =E3*0.8 -> 5,600.00 | F8: =D8*26 -> 1,534.00 | G8: =C8*40 -> 2,360.00 | I8: =E8+F8+G8 -> 9,494.00
A9: 예비반(2형제) | B9: 2분기 | C9: 29 | D9: 29 | E9: =E4*0.8 -> 5,600.00 | F9: =D9*26 -> 754.00 | G9: =C9*40 -> 1,160.00 | I9: =E9+F9+G9 -> 7,514.00
A10: 예비반(2형제) | B10: 3분기 | C10: 65 | D10: 65 | E10: =E5*0.8 -> 5,600.00 | F10: =D10*26 -> 1,690.00 | G10: =C10*40 -> 2,600.00 | I10: =E10+F10+G10 -> 9,890.00
A11: 예비반(2형제) | B11: 4분기 | C11: 28 | D11: 28 | E11: =E6*0.8 -> 5,600.00 | F11: =D11*26 -> 728.00 | G11: =C11*40 -> 1,120.00 | I11: =E11+F11+G11 -> 7,448.00
A12: 합계 | C12: =SUM(C8:C11) -> 181 | D12: 181 | E12: 22,400.00 | F12: 4,706.00 | G12: 7,240.00 | H12: 0 | I12: 34,346.00 | J12: 0
A13: 예비반(3형제) | B13: 1분기 | C13: 59 | D13: 59 | E13: =E3*0.6 -> 4,200.00 | F13: =D13*26 -> 1,534.00 | G13: =C13*40 -> 2,360.00 | I13: =E13+F13+G13 -> 8,094.00
A14: 예비반(3형제) | B14: 2분기 | C14: 29 | D14: 29 | E14: =E4*0.6 -> 4,200.00 | F14: =D14*26 -> 754.00 | G14: =C14*40 -> 1,160.00 | I14: =E14+F14+G14 -> 6,114.00
A15: 예비반(3형제) | B15: 3분기 | C15: 65 | D15: 65 | E15: =E5*0.6 -> 4,200.00 | F15: =D15*26 -> 1,690.00 | G15: =C15*40 -> 2,600.00 | I15: =E15+F15+G15 -> 8,490.00
A16: 예비반(3형제) | B16: 4분기 | C16: 28 | D16: 28 | E16: =E6*0.6 -> 4,200.00 | F16: =D16*26 -> 728.00 | G16: =C16*40 -> 1,120.00 | I16: =E16+F16+G16 -> 6,048.00
A17: 합계 | C17: =SUM(C13:C16) -> 181 | D17: 181 | E17: =SUM(E13:E16) -> 16,800.00 | F17: =SUM(F13:F16) -> 4,706.00 | G17: =SUM(G13:G16) -> 7,240.00 | I17: =SUM(I13:I16) -> 28,746.00
A18: 초등부(일반) | B18: 1분기 | C18: 59 | D18: 59 | E18: 6,750.00 | F18: =D18*26 -> 1,534.00 | G18: =C18*26 -> 1,534.00 | I18: =E18+F18+G18 -> 9,818.00
A19: 초등부(일반) | B19: 2분기 | C19: 29 | D19: 29 | E19: 6,750.00 | F19: =D19*26 -> 754.00 | G19: =C19*26 -> 754.00 | I19: =E19+F19+G19 -> 8,258.00
A20: 초등부(일반) | B20: 3분기 | C20: 65 | D20: 65 | E20: 6,750.00 | F20: =D20*26 -> 1,690.00 | G20: =C20*26 -> 1,690.00 | I20: =E20+F20+G20 -> 10,130.00
A21: 초등부(일반) | B21: 4분기 | C21: 28 | D21: 28 | E21: 6,750.00 | F21: =D21*26 -> 728.00 | G21: =C21*26 -> 728.00 | I21: =E21+F21+G21 -> 8,206.00
A22: 합계 | C22: =SUM(C18:C21) -> 181 | D22: 181 | E22: 27,000.00 | F22: 4,706.00 | G22: 4,706.00 | H22: 0 | I22: 36,412.00 | J22: 0
A23: 초등부(2형제) | B23: 1분기 | C23: 59 | D23: 59 | E23: =E18*0.8 -> 5,400.00 | F23: =D23*26 -> 1,534.00 | G23: =C23*26 -> 1,534.00 | I23: =E23+F23+G23 -> 8,468.00
A24: 초등부(2형제) | B24: 2분기 | C24: 29 | D24: 29 | E24: =E19*0.8 -> 5,400.00 | F24: =D24*26 -> 754.00 | G24: =C24*26 -> 754.00 | I24: =E24+F24+G24 -> 6,908.00
A25: 초등부(2형제) | B25: 3분기 | C25: 65 | D25: 65 | E25: =E20*0.8 -> 5,400.00 | F25: =D25*26 -> 1,690.00 | G25: =C25*26 -> 1,690.00 | I25: =E25+F25+G25 -> 8,780.00
A26: 초등부(2형제) | B26: 4분기 | C26: 28 | D26: 28 | E26: =E21*0.8 -> 5,400.00 | F26: =D26*26 -> 728.00 | G26: =C26*26 -> 728.00 | I26: =E26+F26+G26 -> 6,856.00
A27: 합계 | C27: =SUM(C23:C26) -> 181 | D27: 181 | E27: 21,600.00 | F27: 4,706.00 | G27: 4,706.00 | H27: 0 | I27: 31,012.00 | J27: 0
A28: 초등부(3형제) | B28: 1분기 | C28: 59 | D28: 59 | E28: =E18*0.6 -> 4,050.00 | F28: =D28*26 -> 1,534.00 | G28: =C28*26 -> 1,534.00 | I28: =E28+F28+G28 -> 7,118.00
A29: 초등부(3형제) | B29: 2분기 | C29: 29 | D29: 29 | E29: =E19*0.6 -> 4,050.00 | F29: =D29*26 -> 754.00 | G29: =C29*26 -> 754.00 | I29: =E29+F29+G29 -> 5,558.00
A30: 초등부(3형제) | B30: 3분기 | C30: 65 | D30: 65 | E30: =E20*0.6 -> 4,050.00 | F30: =D30*26 -> 1,690.00 | G30: =C30*26 -> 1,690.00 | I30: =E30+F30+G30 -> 7,430.00
A31: 초등부(3형제) | B31: 4분기 | C31: 28 | D31: 28 | E31: =E21*0.6 -> 4,050.00 | F31: =D31*26 -> 728.00 | G31: =C31*26 -> 728.00 | I31: =E31+F31+G31 -> 5,506.00
A32: 합계 | C32: =SUM(C28:C31) -> 181 | D32: 181 | E32: =SUM(E28:E31) -> 16,200.00 | F32: =SUM(F28:F31) -> 4,706.00 | G32: =SUM(G28:G31) -> 4,706.00 | I32: =SUM(I28:I31) -> 25,612.00
A33: 중등부(일반) | B33: 1분기 | C33: 59 | D33: 59 | E33: 7,250.00 | F33: =D33*28 -> 1,652.00 | G33: =C33*26 -> 1,534.00 | I33: =E33+F33+G33 -> 10,436.00
A34: 중등부(일반) | B34: 2분기 | C34: 29 | D34: 29 | E34: 7,250.00 | F34: =D34*28 -> 812.00 | G34: =C34*26 -> 754.00 | I34: =E34+F34+G34 -> 8,816.00
A35: 중등부(일반) | B35: 3분기 | C35: 65 | D35: 65 | E35: 7,250.00 | F35: =D35*28 -> 1,820.00 | G35: =C35*26 -> 1,690.00 | I35: =E35+F35+G35 -> 10,760.00
A36: 중등부(일반) | B36: 4분기 | C36: 28 | D36: 28 | E36: 7,250.00 | F36: =D36*28 -> 784.00 | G36: =C36*26 -> 728.00 | I36: =E36+F36+G36 -> 8,762.00
A37: 합계 | C37: =SUM(C33:C36) -> 181 | D37: 181 | E37: 29,000.00 | F37: 5,068.00 | G37: 4,706.00 | H37: 0 | I37: 38,774.00 | J37: 0
A38: 중등부(2형제) | B38: 1분기 | C38: 59 | D38: 59 | E38: =E33*0.8 -> 5,800.00 | F38: =D38*28 -> 1,652.00 | G38: =C38*26 -> 1,534.00 | I38: =E38+F38+G38 -> 8,986.00
A39: 중등부(2형제) | B39: 2분기 | C39: 29 | D39: 29 | E39: =E34*0.8 -> 5,800.00 | F39: =D39*28 -> 812.00 | G39: =C39*23 -> 667.00 | I39: =E39+F39+G39 -> 7,279.00
A40: 중등부(2형제) | B40: 3분기 | C40: 65 | D40: 65 | E40: =E35*0.8 -> 5,800.00 | F40: =D40*28 -> 1,820.00 | G40: =C40*23 -> 1,495.00 | I40: =E40+F40+G40 -> 9,115.00
A41: 중등부(2형제) | B41: 4분기 | C41: 28 | D41: 28 | E41: =E36*0.8 -> 5,800.00 | F41: =D41*28 -> 784.00 | G41: =C41*23 -> 644.00 | I41: =E41+F41+G41 -> 7,228.00
A42: 합계 | C42: =SUM(C38:C41) -> 181 | D42: 181 | E42: 23,200.00 | F42: 5,068.00 | G42: 4,340.00 | H42: 0 | I42: 32,608.00 | J42: 0
A43: 중등부(3형제) | B43: 1분기 | C43: 59 | D43: 59 | E43: =E33*0.6 -> 4,350.00 | F43: =D43*28 -> 1,652.00 | G43: =C43*26 -> 1,534.00 | I43: =E43+F43+G43 -> 7,536.00
A44: 중등부(3형제) | B44: 2분기 | C44: 29 | D44: 29 | E44: =E34*0.6 -> 4,350.00 | F44: 812.00 | G44: 754.00 | I44: 5,916.00
A45: 중등부(3형제) | B45: 3분기 | C45: 65 | D45: 65 | E45: =E35*0.6 -> 4,350.00 | F45: 1,820.00 | G45: 1,690.00 | I45: 7,860.00
A46: 중등부(3형제) | B46: 4분기 | C46: 28 | D46: 28 | E46: =E36*0.6 -> 4,350.00 | F46: 784.00 | G46: 728.00 | I46: 5,862.00
A47: 합계 | C47: =SUM(C43:C46) -> 181 | D47: =SUM(D43:D46) -> 181 | E47: =SUM(E43:E46) -> 17,400.00 | F47: =SUM(F43:F46) -> 5,068.00 | G47: =SUM(G43:G46) -> 4,706.00
A48: 고등부(일반) | B48: 1분기 | C48: 59 | D48: 59 | E48: 9,250.00 | F48: 1,652.00 | G48: =C48*26 -> 1,534.00 | H48: =C48*55 -> 3,245.00 | I48: =E48+F48+G48 -> 12,436.00 | J48: =E48+F48+H48 -> 14,147.00
A49: 고등부(일반) | B49: 2분기 | C49: 29 | D49: 29 | E49: 9,250.00 | F49: =D49*28 -> 812.00 | G49: =C49*26 -> 754.00 | H49: =C49*55 -> 1,595.00 | I49: =E49+F49+G49 -> 10,816.00 | J49: =E49+F49+H49 -> 11,657.00
A50: 고등부(일반) | B50: 3분기 | C50: 65 | D50: 65 | E50: 9,250.00 | F50: =D50*28 -> 1,820.00 | G50: =C50*26 -> 1,690.00 | H50: =C50*55 -> 3,575.00 | I50: =E50+F50+G50 -> 12,760.00 | J50: =E50+F50+H50 -> 14,645.00
A51: 고등부(일반) | B51: 4분기 | C51: 28 | D51: 28 | E51: 9,250.00 | F51: =D51*28 -> 784.00 | G51: =C51*26 -> 728.00 | H51: =C51*55 -> 1,540.00 | I51: =E51+F51+G51 -> 10,762.00 | J51: =E51+F51+H51 -> 11,574.00
A52: 합계 | C52: =SUM(C48:C51) -> 181 | D52: 181 | E52: 37,000.00 | F52: 5,068.00 | G52: 4,706.00 | H52: 9,955.00 | I52: 46,774.00 | J52: 52,023.00
A53: 고등부(2형제) | B53: 1분기 | C53: 59 | D53: 59 | E53: =E48*0.8 -> 7,400.00 | F53: =D53*28 -> 1,652.00 | G53: =C53*26 -> 1,534.00 | H53: =C53*55 -> 3,245.00 | I53: =E53+F53+G53 -> 10,586.00 | J53: =E53+F53+H53 -> 12,297.00
A54: 고등부(2형제) | B54: 2분기 | C54: 29 | D54: 29 | E54: =E49*0.8 -> 7,400.00 | F54: =D54*28 -> 812.00 | G54: =C54*26 -> 754.00 | H54: =C54*55 -> 1,595.00 | I54: =E54+F54+G54 -> 8,966.00 | J54: =E54+F54+H54 -> 9,807.00
A55: 고등부(2형제) | B55: 3분기 | C55: 65 | D55: 65 | E55: =E50*0.8 -> 7,400.00 | F55: =D55*28 -> 1,820.00 | G55: =C55*26 -> 1,690.00 | H55: =C55*55 -> 3,575.00 | I55: =E55+F55+G55 -> 10,910.00 | J55: =E55+F55+H55 -> 12,795.00
A56: 고등부(2형제) | B56: 4분기 | C56: 28 | D56: 28 | E56: =E51*0.8 -> 7,400.00 | F56: =D56*28 -> 784.00 | G56: =C56*26 -> 728.00 | H56: =C56*55 -> 1,540.00 | I56: =E56+F56+G56 -> 8,912.00 | J56: =E56+F56+H56 -> 9,724.00
A57: 합계 | C57: =SUM(C53:C56) -> 181 | D57: 181 | E57: 29,600.00 | F57: 5,068.00 | G57: 4,706.00 | H57: 9,955.00 | I57: 39,374.00 | J57: 44,623.00
A58: 고등부(3형제) | B58: 1분기 | C58: 60 | D58: 60 | E58: =E48*0.6 -> 5,550.00 | F58: =D58*25 -> 1,500.00 | G58: =C58*23 -> 1,380.00 | H58: =C58*44 -> 2,640.00 | I58: =E58+F58+G58 -> 8,430.00 | J58: =E58+F58+H58 -> 9,690.00
A59: 고등부(3형제) | B59: 2분기 | C59: 28 | D59: 28 | E59: =E49*0.6 -> 5,550.00 | F59: =D59*25 -> 700.00 | G59: =C59*23 -> 644.00 | H59: =C59*44 -> 1,232.00 | I59: =E59+F59+G59 -> 6,894.00 | J59: =E59+F59+H59 -> 7,482.00
A60: 고등부(3형제) | B60: 3분기 | C60: 66 | D60: 66 | E60: =E50*0.6 -> 5,550.00 | F60: =D60*25 -> 1,650.00 | G60: =C60*23 -> 1,518.00 | H60: =C60*44 -> 2,904.00 | I60: =E60+F60+G60 -> 8,718.00 | J60: =E60+F60+H60 -> 10,104.00
A61: 고등부(3형제) | B61: 4분기 | C61: 29 | D61: 29 | E61: =E51*0.6 -> 5,550.00 | F61: =D61*25 -> 725.00 | G61: =C61*23 -> 667.00 | H61: =C61*44 -> 1,276.00 | I61: =E61+F61+G61 -> 6,942.00 | J61: =E61+F61+H61 -> 7,551.00

Sheet Sheet2

Sheet Sheet3
